bitfinex/quotes_ETHUSD_20250906
["timestamp","ask_amount","ask_price","bid_price","bid_amount"]
[1757140122785,10.793,4299.3,4299.2,21.08087744]
[1757140122972,10.793,4299.3,4299.2,20.79147744]
[1757140123169,10.793,4299.3,4299.2,20.34957744]
[1757140124773,10.892,4299.3,4299.2,20.34957744]
[1757140124980,11.3429,4299.3,4299.2,20.34957744]
[1757140126292,11.3429,4299.3,4299.2,18.0235633]
[1757140127397,10.793,4299.3,4299.2,20.34957744]
[1757140127903,10.8943,4299.3,4299.2,20.34957744]
[1757140128101,10.793,4299.3,4299.2,20.34957744]
[1757140130692,10.001,4299.3,4299.2,21.67487744]
[1757140139812,10.001,4299.3,4299.2,20.75497744]
[1757140140044,10.001,4299.3,4299.2,21.19687744]
[1757140140245,10.1,4299.3,4299.2,20.35557744]
[1757140140608,10.001,4299.3,4299.2,20.35557744]
[1757140141409,10.5532,4299.3,4299.2,20.35557744]
[1757140145650,10.001,4299.3,4299.2,20.35557744]
[1757140146955,10.5509,4299.3,4299.2,20.35457744]
[1757140147120,10.5509,4299.3,4299.2,16.49157744]
[1757140147316,10.5509,4299.3,4299.2,20.35457744]
[1757140148014,10.5509,4299.3,4299.2,18.0285633]
[1757140148445,11.3429,4299.3,4299.2,18.0275633]
[1757140148949,11.6702,4299.3,4299.2,18.0285633]
[1757140152076,11.3429,4299.3,4299.2,18.0285633]
[1757140152245,11.6702,4299.3,4299.2,18.0285633]
[1757140152953,11.3429,4299.3,4299.2,18.0285633]
[1757140153825,11.3429,4299.3,4299.2,20.35457744]
[1757140154656,11.3429,4299.3,4299.2,18.0285633]
[1757140154861,11.3429,4299.3,4299.2,20.35457744]
[1757140155062,11.3429,4299.3,4299.2,18.0285633]
[1757140155358,11.3429,4299.3,4299.2,20.35457744]
[1757140155964,11.3429,4299.3,4299.2,18.0285633]
[1757140156269,11.3429,4299.3,4299.2,14.1655633]
[1757140156429,11.3429,4299.3,4299.2,18.0265633]
[1757140158566,12.24844334,4299.3,4299.2,18.0265633]
[1757140159074,11.3429,4299.3,4299.2,18.0265633]
[1757140161442,10.793,4299.3,4299.2,18.0265633]
[1757140167690,10.793,4299.3,4299.2,18.4817633]
[1757140169852,10.793,4299.3,4299.2,18.7853633]
[1757140170082,10.793,4299.3,4299.2,21.11137744]
[1757140171097,10.793,4299.3,4299.2,21.57687744]
[1757140173087,10.793,4299.3,4299.2,20.35257744]
[1757140173088,10.892,4299.3,4299.2,20.35257744]
[1757140173497,10.793,4299.3,4299.2,20.35257744]
[1757140173864,10.793,4299.3,4299.2,20.80777744]
[1757140179101,10.793,4299.3,4299.2,21.57687744]
[1757140179607,10.793,4299.3,4299.2,21.11137744]
[1757140183999,10.001,4299.3,4299.2,21.11137744]
[1757140184203,10.001,4299.3,4299.2,21.57207744]
[1757140190623,10.001,4299.3,4299.2,21.11937744]
[1757140195808,10.793,4299.3,4299.2,21.11937744]
[1757140203422,10.793,4299.3,4299.2,21.58007744]
[1757140203629,10.793,4299.3,4299.2,21.11937744]
[1757140206157,10.793,4299.3,4299.2,14.1655633]
[1757140206158,11.3677,4299.3,4299.2,14.1655633]
[1757140206363,12.5488,4299.3,4299.2,18.0215633]
[1757140206568,11.3677,4299.3,4299.2,18.0215633]
[1757140206950,11.3677,4299.3,4299.2,20.34757744]
[1757140209277,10.793,4299.3,4299.2,20.34757744]
[1757140209974,10.793,4299.3,4299.2,20.78047744]
[1757140210274,10.793,4299.3,4299.2,20.34757744]
[1757140211648,10.001,4299.3,4299.2,21.57077744]
[1757140226085,10.001,4299.3,4299.2,21.07437744]
[1757140226489,10.001,4299.3,4299.2,21.57077744]
[1757140228353,10.001,4299.3,4299.2,21.68677744]
[1757140235363,0.001,4299.7,4299.2,21.68677744]
[1757140235364,0.001,4299.7,4299.6,2.32579774]
[1757140235569,0.001,4299.7,4299.6,6.20405571]
[1757140235772,0.001,4299.7,4299.6,6.90759774]
[1757140235983,0.001,4299.7,4299.6,7.40399774]
[1757140236378,0.001,4299.7,4299.6,7.49699667]
[1757140236906,0.001,4299.7,4299.6,7.99448349]
[1757140237107,0.001,4299.7,4299.6,8.49088349]
[1757140240572,0.001,4299.7,4299.6,7.99448349]
[1757140248417,0.001,4299.7,4299.6,8.47718349]
[1757140252521,0.001,4299.7,4299.6,7.99448349]
[1757140266704,0.001,4299.7,4299.6,8.47718349]
[1757140268405,0.001,4299.7,4299.6,7.99448349]
[1757140270541,0.001,4299.7,4299.6,11.44578349]
[1757140275114,0.026,4299.8,4299.6,11.44578349]
[1757140275115,1e-08,4299.8,4299.7,5.32574365]
[1757140275475,1e-08,4299.8,4299.7,6.85067637]
[1757140275670,1e-08,4299.8,4299.7,7.14057637]
[1757140275854,1e-08,4299.8,4299.7,7.59187637]
[1757140276020,1e-08,4299.8,4299.7,7.6848526]
[1757140276333,0.001,4300.2,4299.7,7.6848526]
[1757140276334,1e-08,4299.9,4299.8,2.32568956]
[1757140276520,1e-08,4299.9,4299.8,10.17357638]
[1757140276722,1e-08,4299.9,4299.8,11.36877638]
[1757140285364,1e-08,4299.9,4299.8,16.59377638]
[1757140285570,1e-08,4299.9,4299.8,27.27977638]
[1757140285731,1e-08,4299.9,4299.8,20.86777638]
[1757140287433,1e-08,4299.9,4299.8,15.52477638]
[1757140289768,0.025,4300.8,4299.8,15.52477638]
[1757140289769,1e-08,4300.8,4300.7,2.32520287]
[1757140289993,1e-08,4300.8,4300.7,9.41072316]
[1757140290157,5.43257432,4304.2,4301.7,2.32466234]
[1757140290358,0.3496,4301.9,4301.7,6.17766234]
[1757140290563,0.124,4301.8,4301.7,6.17766234]
[1757140290763,0.59,4301.8,4301.7,6.17766234]
[1757140291365,0.59,4301.8,4301.7,6.52726234]
[1757140291964,0.59,4301.8,4301.7,9.70084568]
[1757140292162,0.02,4301.9,4301.8,2.3246083]
[1757140293979,0.119,4301.9,4301.8,2.3246083]
[1757140294914,0.02,4301.9,4301.8,2.3246083]
[1757140295420,0.02,4301.9,4301.8,15.7866083]
[1757140296718,0.02,4301.9,4301.8,16.5305083]
[1757140296922,0.02,4301.9,4301.8,18.36280755]
[1757140298028,0.02,4301.9,4301.8,21.36280755]
[1757140300023,1e-08,4301.9,4301.8,21.47880755]
[1757140300386,1e-08,4301.9,4301.8,21.02480755]
[1757140300580,1e-08,4301.9,4301.8,21.46560755]
[1757140301728,1e-08,4301.9,4301.8,21.17570755]
[1757140302735,1e-08,4301.9,4301.8,20.73490755]
[1757140306147,1e-08,4301.9,4301.8,21.17570755]
[1757140307348,0.09900001,4301.9,4301.8,20.73490755]
[1757140307646,0.09900001,4301.9,4301.8,24.59290755]
[1757140307843,0.09900001,4301.9,4301.8,20.73490755]
[1757140308051,0.09900001,4301.9,4301.8,24.59390755]
[1757140310327,0.10000001,4301.9,4301.8,24.59390755]
[1757140310529,0.10000001,4301.9,4301.8,20.73490755]
[1757140310729,0.57740001,4301.9,4301.8,22.7606083]
[1757140310974,0.80670001,4301.9,4301.8,22.7606083]
[1757140311369,0.57740001,4301.9,4301.8,22.7606083]
[1757140311885,0.57740001,4301.9,4301.8,19.7606083]
[1757140311886,0.80670001,4301.9,4301.8,19.7606083]
[1757140312043,0.80670001,4301.9,4301.8,15.9026083]
[1757140312372,0.80670001,4301.9,4301.8,19.7606083]
[1757140312792,0.80670001,4301.9,4301.8,19.6446083]
[1757140316766,0.57740001,4301.9,4301.8,19.6466083]
[1757140316973,0.80670001,4301.9,4301.8,19.6466083]
[1757140317712,0.80670001,4301.9,4301.8,19.6456083]
[1757140318496,0.57740001,4301.9,4301.8,19.6456083]
[1757140319193,1.59870001,4301.9,4301.8,19.6456083]
[1757140319808,1.59870001,4301.9,4301.8,15.7866083]
[1757140320021,1.59870001,4301.9,4301.8,19.6456083]
[1757140320678,1.59870001,4301.9,4301.8,15.7866083]
[1757140320904,1.59870001,4301.9,4301.8,19.6456083]
[1757140321105,1.54087001,4301.9,4301.8,13.462]
[1757140321268,1.77017001,4301.9,4301.8,17.321]
[1757140323075,1.77017001,4301.9,4301.8,13.462]
[1757140323275,1.77017001,4301.9,4301.8,17.321]
[1757140323917,1.77017001,4301.9,4301.8,13.462]
[1757140324091,1.77017001,4301.9,4301.8,17.321]
[1757140324295,2.27045851,4301.9,4301.8,17.321]
[1757140325318,2.04115851,4301.9,4301.8,7.051]
[1757140325518,2.27045851,4301.9,4301.8,10.911]
[1757140326551,2.27045851,4301.9,4301.8,7.051]
[1757140326751,2.27045851,4301.9,4301.8,10.913]
[1757140328736,2.27045851,4301.9,4301.8,10.917]
[1757140330440,10.70303283,4301.9,4301.8,10.917]
[1757140333053,10.47373283,4301.9,4301.8,10.917]
[1757140333556,10.70303283,4301.9,4301.8,10.917]
[1757140336920,10.70303283,4301.9,4301.8,10.916]
[1757140341139,10.47373283,4301.9,4301.8,10.916]
[1757140341680,9.99633283,4301.9,4301.8,10.916]
[1757140345277,9.99633283,4301.9,4301.8,11.6543]
[1757140345278,9.10533283,4301.9,4301.8,11.6543]
[1757140345450,9.72586283,4301.9,4301.8,12.1265]
[1757140345645,8.93386283,4301.9,4301.8,12.1265]
[1757140345845,9.72586283,4301.9,4301.8,12.1265]
[1757140346680,9.72586283,4301.9,4301.8,11.6543]
[1757140346860,9.72586283,4301.9,4301.8,12.1265]
[1757140352095,6.72586283,4301.9,4301.8,12.1265]
[1757140353088,7.02176283,4301.9,4301.8,10.914]
[1757140353402,6.72586283,4301.9,4301.8,10.914]
[1757140353970,6.72586283,4301.9,4301.8,7.055]
[1757140354365,6.72586283,4301.9,4301.8,10.917]
[1757140358179,6.72586283,4301.9,4301.8,7.055]
[1757140358377,6.72586283,4301.9,4301.8,10.915]
[1757140359018,6.72586283,4301.9,4301.8,7.055]
[1757140359196,6.72586283,4301.9,4301.8,10.915]
[1757140360197,10.69174911,4301.9,4301.8,10.915]
[1757140362328,10.6926206,4301.9,4301.8,10.915]
[1757140364926,10.6926206,4301.9,4301.8,7.055]
[1757140365148,10.6926206,4301.9,4301.8,10.914]
[1757140368455,10.6926206,4301.9,4301.8,7.055]
[1757140368658,10.6926206,4301.9,4301.8,10.914]
[1757140369240,10.6926206,4301.9,4301.8,7.055]
[1757140369562,10.6926206,4301.9,4301.8,10.914]
[1757140371760,10.6926206,4301.9,4301.8,7.055]
[1757140371963,10.6926206,4301.9,4301.8,10.913]
[1757140373060,10.3993206,4301.9,4301.8,10.913]
[1757140374323,10.3993206,4301.9,4301.8,11.3861]
[1757140375766,10.3993206,4301.9,4301.8,10.913]
[1757140376463,10.3993206,4301.9,4301.8,7.055]
[1757140376661,10.3993206,4301.9,4301.8,10.912]
[1757140379566,10.3993206,4301.9,4301.8,11.3851]
[1757140383042,10.3993206,4301.9,4301.8,11.3841]
[1757140383441,11.1456206,4301.9,4301.8,7.055]
[1757140383675,11.1456206,4301.9,4301.8,10.911]
[1757140384345,13.47017486,4301.9,4301.8,7.055]
[1757140384547,13.47017486,4301.9,4301.8,10.912]
[1757140385193,13.01457486,4301.9,4301.8,10.912]
[1757140386464,13.47017486,4301.9,4301.8,10.912]
[1757140386986,13.01457486,4301.9,4301.8,10.912]
[1757140395370,13.01457486,4301.9,4301.8,7.055]
[1757140395527,13.01457486,4301.9,4301.8,10.911]
[1757140396375,10.6900206,4301.9,4301.8,10.911]
[1757140398750,13.01457486,4301.9,4301.8,10.911]
[1757140400675,13.01457486,4301.9,4301.8,7.055]
[1757140401030,13.01457486,4301.9,4301.8,10.911]
[1757140401682,13.01457486,4301.9,4301.8,7.055]
[1757140401886,13.01457486,4301.9,4301.8,10.911]
[1757140402087,12.72387486,4301.9,4301.8,10.911]
[1757140403024,10.3993206,4301.9,4301.8,10.911]
[1757140403170,12.72387486,4301.9,4301.8,10.911]
[1757140403909,3.11682447,4301.4,4301.3,0.004]
[1757140404097,1.29315999,4301.4,4301.3,6.5269]
[1757140404293,1.29315999,4301.4,4301.3,6.8403]
[1757140404485,1.73407599,4301.4,4301.3,6.8403]
[1757140407436,8.82288181,4301.4,4301.3,5.57]
[1757140408188,8.72388181,4301.4,4301.3,5.57]
[1757140410710,14.15645613,4301.4,4301.3,5.57]
[1757140414518,14.15645613,4301.4,4301.3,6.0432]
[1757140415544,14.15645613,4301.4,4301.3,6.3566]
[1757140416415,14.15645613,4301.4,4301.3,6.8403]
[1757140419950,10.16665031,4301.4,4301.3,6.8403]
[1757140420155,8.93373431,4301.4,4301.3,6.8403]
[1757140420459,5.93373431,4301.4,4301.3,6.8403]
[1757140420815,9.72573431,4301.4,4301.3,6.8403]
[1757140427741,4.29315999,4301.4,4301.3,6.8403]
[1757140427953,3.50115999,4301.4,4301.3,6.8403]
[1757140428182,4.29315999,4301.4,4301.3,6.8403]
[1757140429253,3.792,4301.4,4301.3,6.8403]
[1757140429450,4.29255343,4301.4,4301.3,6.8403]
[1757140431343,3.792,4301.4,4301.3,6.8403]
[1757140442419,0.792,4301.4,4301.3,6.8403]
[1757140442718,0.792,4301.4,4301.3,8.36096445]
[1757140449129,0.792,4301.4,4301.3,10.68584297]
[1757140449355,0.001,4301.8,4301.6,2.32470665]
[1757140449559,0.001,4301.8,4301.7,6.17966234]
[1757140450055,0.001,4301.8,4301.7,7.43326234]
[1757140450354,0.001,4301.8,4301.7,7.97741743]
[1757140450516,0.001,4301.8,4301.7,8.07038631]
[1757140455358,0.117,4301.8,4301.7,8.07038631]
[1757140460962,0.117,4301.8,4301.7,4.21538631]
[1757140461163,0.117,4301.8,4301.7,8.07038631]
[1757140465280,0.117,4301.8,4301.7,4.21538631]
[1757140465572,0.117,4301.8,4301.7,8.07038631]
[1757140468173,0.117,4301.8,4301.7,14.48138631]
[1757140468586,0.117,4301.8,4301.7,7.04812397]
[1757140468587,1.008,4301.8,4301.7,7.04812397]
[1757140468740,1.008,4301.8,4301.7,10.35796888]
[1757140471472,1.008,4301.8,4301.7,6.50396888]
[1757140471784,1.008,4301.8,4301.7,10.35796888]
[1757140475062,0.909,4301.8,4301.7,10.35796888]
[1757140475444,0.909,4301.8,4301.7,10.67036888]
[1757140475649,0.909,4301.8,4301.7,10.35796888]
[1757140475886,0.909,4301.8,4301.7,11.13346888]
[1757140476387,0.909,4301.8,4301.7,13.45813122]
[1757140476582,0.909,4301.8,4301.7,12.99503122]
[1757140476959,0.909,4301.8,4301.7,12.68263122]
[1757140479805,0.909,4301.8,4301.7,13.46823122]
[1757140480893,0.909,4301.8,4301.7,11.14356888]
[1757140481902,0.909,4301.8,4301.7,13.46823122]
[1757140482492,0.909,4301.8,4301.7,10.35796888]
[1757140484099,0.909,4301.8,4301.7,13.93243122]
[1757140484464,0.909,4301.8,4301.7,10.83116888]
[1757140484691,0.909,4301.8,4301.7,11.14036888]
[1757140491514,0.909,4301.8,4301.7,13.46503122]
[1757140492011,0.909,4301.8,4301.7,18.80703122]
[1757140492211,0.909,4301.8,4301.7,16.48236888]
[1757140493738,0.909,4301.8,4301.7,18.80703122]
[1757140498844,0.909,4301.8,4301.7,16.48236888]
[1757140499051,0.909,4301.8,4301.7,18.80703122]
[1757140499642,0.909,4301.8,4301.7,16.48236888]
[1757140500405,0.909,4301.8,4301.7,19.27443122]
[1757140501747,0.909,4301.8,4301.7,20.98343122]
[1757140502365,0.001,4301.8,4301.7,20.98343122]
[1757140510643,0.001,4301.8,4301.7,21.09943122]
[1757140518111,0.001,4301.8,4301.7,21.09843122]
[1757140522531,0.001,4301.8,4301.7,24.09843122]
[1757140532012,1e-08,4302.3,4302.2,2.32439217]
[1757140532214,1e-08,4302.3,4302.2,9.94227805]
[1757140532413,1e-08,4302.3,4302.2,11.19977805]
[1757140532619,1e-08,4302.3,4302.2,11.29269748]
[1757140533852,1e-08,4302.3,4302.2,7.43969748]
[1757140534028,1e-08,4302.3,4302.2,11.29269748]
[1757140535694,1e-08,4302.3,4302.2,7.43969748]
[1757140535817,1e-08,4302.3,4302.2,11.29169748]
[1757140536665,1e-08,4302.3,4302.2,10.03419748]
[1757140539232,1e-08,4302.3,4302.2,6.18219748]
[1757140539426,1e-08,4302.3,4302.2,10.03419748]
[1757140540369,1e-08,4302.3,4302.2,10.32569748]
[1757140540534,1e-08,4302.3,4302.2,10.77559748]
[1757140542069,1e-08,4302.3,4302.2,10.89159748]
[1757140542648,1e-08,4302.3,4302.2,11.37849748]
[1757140551495,1e-08,4302.3,4302.2,14.15549748]
[1757140559116,1e-08,4302.3,4302.2,13.66859748]
[1757140560428,1e-08,4302.3,4302.2,14.15549748]
[1757140577973,0.001,4303.2,4302.3,5.32433814]
[1757140578189,0.001,4303.2,4303.1,4.03190602]
[1757140578374,0.458,4303.6,4303.5,2.32369001]
[1757140578554,1.116,4304.0,4303.7,2.32358203]
[1757140578870,1.116,4304.0,4303.7,6.17458203]
[1757140579063,0.3372,4303.8,4303.7,6.17458203]
[1757140579262,0.8135,4303.8,4303.7,6.87144857]
[1757140583066,0.7952,4303.8,4303.7,6.87144857]
[1757140583794,0.8135,4303.8,4303.7,13.27944857]
[1757140589171,0.7952,4303.8,4303.7,13.27944857]
[1757140589571,0.3372,4303.8,4303.7,13.27944857]
[1757140594822,0.7952,4303.8,4303.7,13.27944857]
[1757140594971,0.7962,4303.8,4303.7,13.27944857]
[1757140595507,0.3382,4303.8,4303.7,9.42844857]
[1757140596006,0.3382,4303.8,4303.7,13.27844857]
[1757140596397,0.3382,4303.8,4303.7,9.42844857]
[1757140596710,0.3382,4303.8,4303.7,13.27844857]
[1757140597007,0.3382,4303.8,4303.7,9.42844857]
[1757140597214,0.3382,4303.8,4303.7,13.27844857]
[1757140598806,0.3382,4303.8,4303.7,14.98644857]
[1757140600210,0.026,4303.8,4303.7,14.98644857]
[1757140601811,0.3152,4303.8,4303.7,14.98644857]
[1757140602309,1.73572,4303.8,4303.7,8.81286654]
[1757140602518,1.73572,4303.8,4303.7,12.66286654]
[1757140602827,1.73572,4303.8,4303.7,14.98644857]
[1757140604522,1.25232,4303.8,4303.7,14.98644857]
[1757140607886,0.818,4303.8,4303.7,14.98644857]
[1757140608091,0.818,4303.8,4303.7,15.71644857]
[1757140608814,0.818,4303.8,4303.7,15.41774857]
[1757140609971,0.818,4303.8,4303.7,14.98644857]
[1757140611608,0.917,4303.8,4303.7,14.98644857]
[1757140612325,1.033,4303.8,4303.7,14.98644857]
[1757140613345,1.5164,4303.8,4303.7,12.66286654]
[1757140613495,1.79297,4303.8,4303.7,8.81286654]
[1757140613699,1.79297,4303.8,4303.7,12.66286654]
[1757140614145,1.30957,4303.8,4303.7,8.81286654]
[1757140614311,1.30957,4303.8,4303.7,12.66286654]
[1757140615478,1.30957,4303.8,4303.7,14.98644857]
[1757140616560,1.30957,4303.8,4303.7,12.66286654]
[1757140617268,1.30957,4303.8,4303.7,14.98644857]
[1757140617461,1.033,4303.8,4303.7,14.98644857]
[1757140617961,1.033,4303.8,4303.7,20.32544857]
[1757140618666,1.033,4303.8,4303.7,18.00186654]
[1757140620464,1.033,4303.8,4303.7,14.15186654]
[1757140620626,1.033,4303.8,4303.7,18.00186654]
[1757140620826,1.28664,4303.8,4303.7,18.00186654]
[1757140621885,1.28664,4303.8,4303.7,14.15186654]
[1757140622172,1.77004,4303.8,4303.7,18.00186654]
[1757140623093,1.28664,4303.8,4303.7,18.00186654]
[1757140623783,1.18764,4303.8,4303.7,18.00186654]
[1757140623993,0.934,4303.8,4303.7,18.00186654]
[1757140624303,0.934,4303.8,4303.7,21.05544857]
[1757140624646,0.934,4303.8,4303.7,21.51704857]
[1757140633499,0.026,4303.8,4303.7,21.51704857]
[1757140639496,0.026,4303.8,4303.7,21.05544857]
[1757140639899,0.026,4303.8,4303.7,20.32444857]
[1757140640102,0.3377,4303.8,4303.7,20.32444857]
[1757140640329,0.026,4303.8,4303.7,20.32444857]
[1757140640938,0.026,4303.8,4303.7,20.76784857]
[1757140641166,0.026,4303.8,4303.7,21.06944857]
[1757140641370,0.026,4303.8,4303.7,20.76784857]
[1757140641748,0.818,4303.8,4303.7,20.32444857]
[1757140641950,0.934,4303.8,4303.7,20.32444857]
[1757140642662,0.934,4303.8,4303.7,20.76784857]
[1757140643275,0.934,4303.8,4303.7,14.59526654]
[1757140643573,1.2284,4303.8,4303.7,18.00086654]
[1757140643778,1.033,4303.8,4303.7,18.00086654]
[1757140644543,1.033,4303.8,4303.7,20.32444857]
[1757140645179,0.934,4303.8,4303.7,20.32444857]
[1757140650771,0.954,4303.8,4303.7,21.54404857]
[1757140652447,1.053,4303.8,4303.7,20.32444857]
[1757140652989,0.954,4303.8,4303.7,20.32444857]
[1757140656583,0.954,4303.8,4303.7,14.15186654]
[1757140656763,1.0543,4303.8,4303.7,18.00086654]
[1757140657360,1.0543,4303.8,4303.7,20.32444857]
[1757140658083,0.954,4303.8,4303.7,20.32444857]
[1757140658487,0.954,4303.8,4303.7,20.76784857]
[1757140661587,0.954,4303.8,4303.7,18.44426654]
[1757140662487,0.954,4303.8,4303.7,18.00086654]
[1757140662802,1.053,4303.8,4303.7,18.00086654]
[1757140664399,0.954,4303.8,4303.7,18.00086654]
[1757140667124,1.2504,4303.8,4303.7,14.15186654]
[1757140667310,1.7217,4303.8,4303.7,18.00086654]
[1757140667620,1.951,4303.8,4303.7,18.00086654]
[1757140667996,1.7217,4303.8,4303.7,18.00086654]
[1757140668392,1.7217,4303.8,4303.7,14.15186654]
[1757140668586,1.7217,4303.8,4303.7,18.00086654]
[1757140671806,1.7217,4303.8,4303.7,14.15186654]
[1757140672012,2.22267565,4303.8,4303.7,18.00086654]
[1757140672604,1.75137565,4303.8,4303.7,18.00086654]
[1757140678444,1.75137565,4303.8,4303.7,13.455]
[1757140678618,2.22267565,4303.8,4303.7,17.304]
[1757140679116,1.75137565,4303.8,4303.7,17.304]
[1757140683074,1.75088384,4303.8,4303.7,17.304]
[1757140684074,1.65188384,4303.8,4303.7,17.304]
[1757140684275,1.65188384,4303.8,4303.7,17.7336]
[1757140685273,1.65188384,4303.8,4303.7,17.304]
[1757140685665,1.65188384,4303.8,4303.7,17.7336]
[1757140686395,1.65188384,4303.8,4303.7,18.0206]
[1757140687298,1.1514,4303.8,4303.7,18.0206]
[1757140689282,1.65200969,4303.8,4303.7,18.0206]
[1757140689644,1.65200969,4303.8,4303.7,18.5168]
[1757140692002,1.65200969,4303.8,4303.7,18.0206]
[1757140699538,1.65200969,4303.8,4303.7,11.6126]
[1757140705362,1.65200969,4303.8,4303.7,12.1088]
[1757140706666,1.65200969,4303.8,4303.7,11.6126]
[1757140721009,1.65200969,4303.8,4303.7,10.896]
[1757140721810,1.65200969,4303.8,4303.7,11.3281]
[1757140723412,1.65200969,4303.8,4303.7,11.6426]
[1757140733536,1.45460969,4303.8,4303.7,11.6426]
[1757140734329,1.45460969,4303.8,4303.7,7.7936]
[1757140734508,1.45460969,4303.8,4303.7,11.6426]
[1757140736934,1.45460969,4303.8,4303.7,12.1152]
[1757140741551,1.45460969,4303.8,4303.7,11.6426]
[1757140742628,1.45460969,4303.8,4303.7,11.3281]
[1757140743508,1.45460969,4303.8,4303.7,11.6426]
[1757140745110,1.45460969,4303.8,4303.7,11.6416]
[1757140746911,1.45460969,4303.8,4303.7,12.1142]
[1757140749535,1.45460969,4303.8,4303.7,12.81124951]
[1757140750053,1.45460969,4303.8,4303.7,12.33864951]
[1757140750748,1.80107066,4303.8,4303.7,11.59204951]
[1757140754442,1.80107066,4303.8,4303.7,7.74404951]
[1757140754642,1.80107066,4303.8,4303.7,10.895]
[1757140760840,1.70207066,4303.8,4303.7,10.895]
[1757140763699,1.70207066,4303.8,4303.7,11.3253]
[1757140764013,1.70207066,4303.8,4303.7,11.6297]
[1757140764200,1.45460969,4303.8,4303.7,12.0966]
[1757140764397,1.45460969,4303.8,4303.7,12.7936495]
[1757140766706,0.046,4303.8,4303.7,15.11723153]
[1757140767078,0.838,4303.8,4303.7,15.11723153]
[1757140767465,0.046,4303.8,4303.7,16.8613221]
[1757140777526,0.838,4303.8,4303.7,16.8613221]
[1757140779334,0.838,4303.8,4303.7,13.0133221]
[1757140779527,0.838,4303.8,4303.7,11.5910495]
[1757140780244,0.838,4303.8,4303.7,12.3297495]
[1757140780788,0.838,4303.8,4303.7,12.8070495]
[1757140780990,0.838,4303.8,4303.7,15.13063153]
[1757140782133,0.838,4303.8,4303.7,21.53763153]
[1757140784125,0.838,4303.8,4303.7,20.62273153]
[1757140784322,0.838,4303.8,4303.7,21.53763153]
[1757140797510,0.838,4303.8,4303.7,21.06033153]
[1757140801229,0.838,4303.8,4303.7,21.53763153]
[1757140801429,0.838,4303.8,4303.7,19.2140495]
[1757140801662,0.838,4303.8,4303.7,21.53763153]
[1757140801864,0.838,4303.8,4303.7,21.06033153]
[1757140802372,0.838,4303.8,4303.7,17.9980495]
[1757140802573,0.937,4303.8,4303.7,14.1510495]
[1757140802728,0.937,4303.8,4303.7,17.9970495]
[1757140803256,0.838,4303.8,4303.7,17.9970495]
[1757140806061,0.838,4303.8,4303.7,18.4346495]
[1757140806450,0.838,4303.8,4303.7,20.75823153]
[1757140806958,0.838,4303.8,4303.7,18.4346495]
[1757140807362,0.838,4303.8,4303.7,17.9970495]
[1757140807933,0.838,4303.8,4303.7,18.4346495]
[1757140808750,0.838,4303.8,4303.7,14.5886495]
[1757140808955,0.838,4303.8,4303.7,18.4346495]
[1757140810358,0.838,4303.8,4303.7,20.75823153]
[1757140810852,0.838,4303.8,4303.7,18.4346495]
[1757140811045,0.838,4303.8,4303.7,18.7228495]
[1757140813474,0.838,4303.8,4303.7,21.04643153]
[1757140818478,0.838,4303.8,4303.7,18.7228495]
[1757140819682,0.838,4303.8,4303.7,21.04643153]
[1757140821186,0.838,4303.8,4303.7,21.50683153]
[1757140827476,0.838,4303.8,4303.7,21.53723153]
[1757140830389,0.046,4303.8,4303.7,21.53723153]
[1757140830769,0.838,4303.8,4303.7,21.53723153]
[1757140845416,0.838,4303.8,4303.7,21.07683153]
[1757140845603,0.838,4303.8,4303.7,20.32063153]
[1757140845980,0.838,4303.8,4303.7,21.06143153]
[1757140847013,0.937,4303.8,4303.7,17.9960495]
[1757140847373,0.937,4303.8,4303.7,20.31963153]
[1757140849879,0.838,4303.8,4303.7,20.31963153]
[1757140851802,0.9383,4303.8,4303.7,17.9960495]
[1757140852623,0.9383,4303.8,4303.7,14.1510495]
[1757140853030,0.9383,4303.8,4303.7,20.31963153]
[1757140853402,0.9383,4303.8,4303.7,16.47463153]
[1757140853712,0.9383,4303.8,4303.7,20.31963153]
[1757140854631,0.838,4303.8,4303.7,20.31963153]
[1757140855329,0.9396,4303.8,4303.7,17.9960495]
[1757140855510,0.9396,4303.8,4303.7,14.1510495]
[1757140855713,0.9396,4303.8,4303.7,17.9960495]
[1757140855900,0.838,4303.8,4303.7,17.9960495]
[1757140857027,0.838,4303.8,4303.7,20.31963153]
[1757140857724,0.838,4303.8,4303.7,16.47463153]
[1757140857946,0.838,4303.8,4303.7,20.31963153]
[1757140860648,0.838,4303.8,4303.7,20.77333153]
[1757140863461,0.838,4303.8,4303.7,18.4497495]
[1757140863760,0.838,4303.8,4303.7,20.77333153]
[1757140864512,0.838,4303.8,4303.7,21.06043153]
[1757140866262,0.838,4303.8,4303.7,21.55943153]
[1757140870565,0.838,4303.8,4303.7,21.06043153]
[1757140889267,0.838,4303.8,4303.7,18.7368495]
[1757140889668,0.838,4303.8,4303.7,21.06043153]
[1757140891076,0.838,4303.8,4303.7,21.52303153]
[1757140895680,0.954,4303.8,4303.7,21.52303153]
[1757140899405,0.838,4303.8,4303.7,21.52303153]
[1757140903776,0.046,4303.8,4303.7,21.52303153]
[1757140908776,0.046,4303.8,4303.7,21.52303153]
[1757140908972,0.046,4303.8,4303.7,17.67803153]
[1757140909171,0.046,4303.8,4303.7,21.05843153]
[1757140909607,0.3468,4303.8,4303.7,16.47463153]
[1757140909795,0.3468,4303.8,4303.7,20.31763153]
[1757140912398,1.1388,4303.8,4303.7,16.47463153]
[1757140912578,1.611,4303.8,4303.7,20.31763153]
[1757140912773,1.1388,4303.8,4303.7,20.31763153]
[1757140918695,0.838,4303.8,4303.7,20.31763153]
[1757140919603,0.838,4303.8,4303.7,16.47463153]
[1757140919804,0.838,4303.8,4303.7,20.31763153]
[1757140921746,1.1361,4303.8,4303.7,20.31763153]
[1757140924422,1.39893,4303.8,4303.7,14.1510495]